Workbook

Sheet تقرير تفصيلى
E2: العدد | F2: الصنف | G2: اسم المقاول | H2: التاريخ | I2: التاريخ
H3: =">="&E6 -> >=45173 | I3: ="<="&F6 -> <=46004
E5: من تاريخ | F5: الى تاريخ
E6: 2023-09-04 | F6: 2025-12-13 | I6: تقرير تفصيلى للمقاولين2025
E9: العدد | F9: التاريخ | G9: الصنف | H9: اسم المقاول | I9: القائم | J9: الفارغ | K9: الصافى | L9: السعر | M9: القيمة

Sheet toutal
C2: خلاصة شغل الصادر الى مصنع ايجى فروست | G2: =TODAY() -> 2025-02-12
A4: الاسم | B4: =+A4 -> الاسم | C4: الكمية الصافى | D4: السعر | E4: القيمة | F4: السداد | G4: الباقى
A5: تقرير تفصيلى
A6: يومية المقاولين
A7: فستفال | B7: =+A7 -> فستفال | C7: =SUMIFS('يومية المقاولين'!$N$7:$N$13000,'يومية المقاولين'!$H$7:$H$13000,$A7) -> 158684.6814 | D7: =+E7/C7 -> 41.02143628 | E7: =SUMIFS('يومية المقاولين'!$P$7:$P$17000,'يومية المقاولين'!$H$7:$H$17000,$A7) -> 6509473.547 | G7: =+E7 -> 6509473.547
A8: صن سيشال | B8: =+A8 -> صن سيشال | C8: =SUMIFS('يومية المقاولين'!$N$7:$N$13000,'يومية المقاولين'!$H$7:$H$13000,$A8) -> 3606.35 | D8: =+E8/C8 -> 30 | E8: =SUMIFS('يومية المقاولين'!$P$7:$P$17000,'يومية المقاولين'!$H$7:$H$17000,$A8) -> 108190.5 | G8: =+G7+E8-F8 -> 6617664.047
A9: فرتونا | B9: فرتونا | C9: =SUMIFS('يومية المقاولين'!$N$7:$N$13000,'يومية المقاولين'!$H$7:$H$13000,$A9) -> 2602.4 | D9: 36 | E9: =SUMIFS('يومية المقاولين'!$P$7:$P$17000,'يومية المقاولين'!$H$7:$H$17000,$A9) -> 93686.4 | G9: =+G8+E9-F9 -> 6711350.447
B10: سداد ايجى فروست | F10: 500000 | G10: 6211350.447
B11: سداد ايجى فروست | F11: 750000 | G11: 5461350.447
B12: سداد ايجى فروست | F12: 500000 | G12: 4961350.447
B13: 0
B14: 0
B15: 0
B16: 0
B17: 0
B18: 0
B19: 0
B20: 0
B21: 0
B22: 0
B23: 0
B24: 0
B25: 0
B26: 0
B27: 0
B28: 0
B29: 0
B30: 0
B31: 0
B32: 0
B33: 0
B34: 0
B35: 0
B36: 0
B37: 0
B38: 0
B39: 0
B40: 0
B41: 0
B42: 0
B43: 0
B44: 0
B45: 0
B46: 0
B47: 0
B48: 0
B49: 0
B50: 0
B51: 0
B52: 0
B53: 0
B54: 0
B55: 0
B56: 0
B57: 0
B58: 0
B59: 0
B60: 0
B61: 0
B62: 0
B63: 0
B64: 0
B65: 0
B66: 0
B67: 0
B68: 0
B69: 0
B70: 0
B71: 0
B72: =+A72 -> 0
B73: 0
B74: 0
B75: 0
B76: 0
B77: 0
B78: 0
B79: 0
B80: 0
B81: 0
B82: 0
B83: 0
B84: 0
B85: 0
B86: 0
B87: 0
B88: 0
B89: 0
B90: 0
B91: 0
B92: 0
B93: 0
B94: 0
B95: 0
B96: 0
B97: 0
B98: 0
B99: 0
B100: 0
B101: 0
B102: 0
B103: 0
B104: 0
B105: 0
B106: 0
B107: 0
B108: 0
B109: 0
B110: 0
B111: 0
B112: 0
B113: 0
B114: 0
B115: 0
B116: 0
B117: 0
B118: 0
B119: 0
B120: 0
B121: 0
B122: 0
B123: 0
B124: 0
B125: 0
B126: 0
B127: 0
B128: 0
B129: 0
B130: 0
B131: 0
B132: 0
B133: 0
B134: 0
B135: 0
B136: =+A136 -> 0
B137: 0
B138: 0
B139: 0
B140: 0
B141: 0
B142: 0
B143: 0
B144: 0
B145: 0
B146: 0
B147: 0
B148: 0
B149: 0
B150: 0
B151: 0
B152: 0
B153: 0
B154: 0
B155: 0
B156: 0
B157: 0
B158: 0
B159: 0
B160: 0
B161: 0
B162: 0
B163: 0
B164: 0
B165: 0
B166: 0
B167: 0
B168: 0
B169: 0
B170: 0
B171: 0
B172: 0
B173: 0
B174: 0
B175: 0
B176: 0
B177: 0
B178: 0
B179: 0
B180: 0
B181: 0
B182: 0
B183: 0
B184: 0
B185: 0
B186: 0
B187: 0
B188: 0
B189: 0
B190: 0
B191: 0
B192: 0
B193: 0
B194: 0
B195: 0
B196: 0
B197: 0
B198: 0
B199: 0
B200: =+A200 -> 0
B201: 0
B202: 0
... 266 more rows

Sheet يومية المقاولين
N1: =SUBTOTAL(9,N7:N17000) -> 164893.4314 | O1: =+P1/N1 -> 40.70113885 | P1: =SUBTOTAL(9,P7:P17000) -> 6711350.447 | Q1: فستفال | R1: =SUMIFS(N7:$N$1300,H7:$H$1300,$Q1) -> 158684.6814 | S1: =SUMIFS(P7:$P$17000,H7:$H$17000,$Q1) -> 6509473.547
Q2: صن سيشال | R2: =SUMIFS(N8:$N$1300,H8:$H$1300,$Q2) -> 3606.35 | S2: =SUMIFS(P8:$P$17000,H8:$H$17000,$Q2) -> 108190.5
E3: بيان يومى تفصيلى بيومية المفرش والمزرعة 2025 | Q3: فرتونا | R3: =SUMIFS(N9:$N$1300,H9:$H$1300,$Q3) -> 2602.4 | S3: =SUMIFS(P9:$P$17000,H9:$H$17000,$Q3) -> 93686.4
H4: الاجمالى الكلى
E6: التاريخ | F6: العدد | G6: اسم المقاول | H6: الصنف | I6: وزن قائم | J6: الفارغ | K6: صافى قبل الخصم | L6: نسبة الخصم | M6: الخصم | N6: الصافى | O6: السعر | P6: القيمة
E7: 2025-01-05 | F7: 172 | G7: شركة ايجى سمارت | H7: فستفال | N7: 1356 | O7: 45 | P7: =+N7*O7 -> 61020
E8: 2025-01-05 | F8: 308 | G8: شركة ايجى سمارت | H8: فستفال | N8: 745 | O8: 45 | P8: =+N8*O8 -> 33525
E9: 2025-01-06 | F9: 312 | G9: شركة ايجى سمارت | H9: فستفال | N9: 1464 | O9: 45 | P9: =+N9*O9 -> 65880
E10: 2025-01-06 | F10: 330 | G10: شركة ايجى سمارت | H10: فستفال | N10: 1358 | O10: 45 | P10: 61110
E11: 2025-01-07 | F11: 972 | G11: شركة ايجى سمارت | H11: فستفال | N11: 4400 | O11: 45 | P11: 198000
E12: 2025-01-08 | F12: 942 | G12: شركة ايجى سمارت | H12: فستفال | N12: 4105 | O12: 45 | P12: 184725
E13: 2025-01-11 | F13: 728 | G13: شركة ايجى سمارت | H13: فستفال | N13: 3324 | O13: 45 | P13: 149580
E14: 2025-01-12 | F14: 252 | G14: شركة ايجى سمارت | H14: فستفال | N14: 1158 | O14: 45 | P14: 52110
E15: 2025-01-12 | F15: 918 | G15: شركة ايجى سمارت | H15: فستفال | N15: 3888 | O15: 45 | P15: 174960
E16: 2025-01-13 | F16: 308 | G16: شركة ايجى سمارت | H16: فستفال | N16: 1279 | O16: 45 | P16: 57555
E17: 2025-01-13 | F17: 972 | G17: شركة ايجى سمارت | H17: فستفال | N17: 3962 | O17: 45 | P17: 178290
E18: 2025-01-14 | F18: 270 | G18: شركة ايجى سمارت | H18: فستفال | N18: 1219 | O18: 45 | P18: 54855
E19: 2025-01-14 | F19: 972 | G19: شركة ايجى سمارت | H19: فستفال | N19: 4224 | O19: 45 | P19: 190080
E20: 2025-01-15 | F20: 158 | G20: شركة ايجى سمارت | H20: فستفال | N20: 773 | O20: 45 | P20: 34785
E21: 2025-01-15 | F21: 918 | G21: شركة ايجى سمارت | H21: فستفال | N21: 3756 | O21: 45 | P21: 169020
E22: 2025-01-18 | F22: 224 | G22: شركة ايجى سمارت | H22: فستفال | N22: 983 | O22: 45 | P22: 44235
E23: 2025-01-18 | F23: 918 | G23: شركة ايجى سمارت | H23: فستفال | N23: 3955 | O23: 45 | P23: 177975
E24: 2025-01-19 | F24: 352 | G24: شركة ايجى سمارت | H24: فستفال | N24: 1597 | O24: 45 | P24: 71865
E25: 2025-01-19 | F25: 972 | G25: شركة ايجى سمارت | H25: فستفال | N25: 4371 | O25: 45 | P25: 196695
E26: 2025-01-20 | F26: 242 | G26: شركة ايجى سمارت | H26: فستفال | N26: 412.6 | O26: 45 | P26: 18567
E27: 2025-01-20 | F27: 972 | G27: شركة ايجى سمارت | H27: فستفال | N27: 1044.6 | O27: 45 | P27: 47007
E28: 2025-01-21 | F28: 396 | G28: شركة ايجى سمارت | H28: فستفال | N28: 1705.6 | O28: 45 | P28: 76752
E29: 2025-01-21 | F29: 972 | G29: شركة ايجى سمارت | H29: فستفال | N29: 4056.8 | O29: 45 | P29: 182556
E30: 2025-01-22 | F30: 300 | G30: شركة ايجى سمارت | H30: فستفال | N30: 4086.2 | O30: 45 | P30: 183879
E31: 2025-01-22 | F31: 100 | G31: شركة ايجى سمارت | H31: فستفال | N31: 965.3 | O31: 45 | P31: 43438.5
E32: 2025-01-22 | F32: 972 | G32: شركة ايجى سمارت | H32: صن سيشال | N32: 707.85 | O32: 30 | P32: 21235.5
E33: 2025-01-25 | F33: 810 | G33: شركة ايجى سمارت | H33: فستفال | N33: 3354.5 | O33: 41 | P33: 137534.5
E34: 2025-01-25 | F34: 756 | G34: شركة ايجى سمارت | H34: فستفال | N34: 3225 | O34: 41 | P34: 132225
E35: 2025-01-26 | F35: 396 | G35: شركة ايجى سمارت | H35: فستفال | N35: 1554 | O35: 41 | P35: 63714
E36: 2025-01-26 | F36: 1080 | G36: شركة ايجى سمارت | H36: فستفال | N36: 4398 | O36: 41 | P36: 180318
E37: 2025-01-27 | F37: 315 | G37: شركة ايجى سمارت | H37: فستفال | N37: 1296.5 | O37: 41 | P37: 53156.5
E38: 2025-01-27 | F38: 918 | G38: شركة ايجى سمارت | H38: فستفال | N38: 3770.4 | O38: 41 | P38: 154586.4
E39: 2025-01-28 | F39: 218 | G39: شركة ايجى سمارت | H39: فستفال | N39: 806 | O39: 41 | P39: 33046
E40: 2025-01-28 | F40: 918 | G40: شركة ايجى سمارت | H40: فستفال | N40: 3732 | O40: 41 | P40: 153012
E41: 2025-01-29 | F41: 150 | G41: شركة ايجى سمارت | H41: فستفال | N41: 598.5 | O41: 41 | P41: 24538.5
E42: 2025-01-29 | F42: 918 | G42: شركة ايجى سمارت | H42: فستفال | N42: 3604 | O42: 41 | P42: 147764
E43: 2025-02-01 | F43: 918 | G43: شركة ايجى سمارت | H43: فستفال | N43: 3731.5 | O43: 39 | P43: 145528.5
E44: 2025-02-01 | F44: 810 | G44: شركة ايجى سمارت | H44: فستفال | N44: 3256.5 | O44: 39 | P44: 127003.5
E45: 2025-02-02 | F45: 810 | G45: شركة ايجى سمارت | H45: فستفال | N45: 3384 | O45: 39 | P45: 131976
E46: 2025-02-02 | F46: 756 | G46: شركة ايجى سمارت | H46: فستفال | N46: 3258 | O46: 39 | P46: 127062
E47: 2025-02-03 | F47: 182 | G47: شركة ايجى سمارت | H47: فستفال | N47: 511.6 | O47: 39 | P47: 19952.4
E48: 2025-02-03 | F48: 864 | G48: شركة ايجى سمارت | H48: فستفال | N48: 3685 | O48: 39 | P48: 143715
E49: 2025-02-03 | F49: 790 | G49: شركة ايجى سمارت | H49: فستفال | N49: 3415 | O49: 39 | P49: 133185
E50: 2025-02-04 | F50: 232 | G50: شركة ايجى سمارت | H50: فستفال | N50: 1113.1 | O50: 39 | P50: 43410.9
E51: 2025-02-04 | F51: 810 | G51: شركة ايجى سمارت | H51: فستفال | N51: 3448 | O51: 39 | P51: 134472
E52: 2025-02-04 | F52: 564 | G52: شركة ايجى سمارت | H52: فستفال | N52: 2421.7 | O52: 39 | P52: 94446.3
E53: 2025-02-04 | F53: 280 | G53: شركة ايجى سمارت | H53: صن سيشال | N53: 1203.5 | O53: 30 | P53: 36105
E54: 2025-02-05 | F54: 267 | G54: شركة ايجى سمارت | H54: صن سيشال | N54: 1288 | O54: 30 | P54: 38640
E55: 2025-02-05 | F55: 918 | G55: شركة ايجى سمارت | H55: فستفال | N55: 3437.4 | O55: 39 | P55: 134058.6
E56: 2025-02-05 | F56: 918 | G56: شركة ايجى سمارت | H56: فستفال | N56: 3653 | O56: 39 | P56: 142467
E57: 2025-02-06 | F57: 100 | G57: شركة ايجى سمارت | H57: صن سيشال | N57: 407 | O57: 30 | P57: 12210
E58: 2025-02-06 | F58: 252 | G58: شركة ايجى سمارت | H58: فستفال | N58: 1026.65 | O58: 39 | P58: 40039.35
E59: 2025-02-06 | F59: 972 | G59: شركة ايجى سمارت | H59: فستفال | N59: 4083.3 | O59: 39 | P59: 159248.7
E60: 2025-02-08 | F60: 122 | G60: شركة ايجى سمارت | H60: فستفال | I60: 610 | J60: 85.4 | K60: 524.6 | L60: 0.01 | M60: 5.246 | N60: 519.35 | O60: 38 | P60: 19735.3
E61: 2025-02-08 | F61: 294 | G61: شركة ايجى سمارت | H61: فرتونا | I61: 670 | J61: 205.8 | K61: 464.2 | L61: 0.04 | M61: 18.568 | N61: 445.6 | O61: 36 | P61: 16041.6
E62: 2025-02-08 | F62: 735 | G62: شركة ايجى سمارت | H62: فستفال | I62: 3770 | J62: 514.5 | K62: 3255.5 | L62: 0.01 | M62: 32.555 | N62: 3223 | O62: 38 | P62: 122474
E63: 2025-02-08 | F63: 495 | G63: شركة ايجى سمارت | H63: فرتونا | I63: 2570 | J63: 346.5 | K63: 2223.5 | L63: 0.03 | M63: 66.705 | N63: 2156.8 | O63: 36 | P63: 77644.8
E64: 2025-02-08 | F64: 531 | G64: شركة ايجى سمارت | H64: فستفال | I64: 2630 | J64: 371.7 | K64: 2258.3 | L64: 0.01 | M64: 22.583 | N64: 2235.72 | O64: 38 | P64: 84957.36
E65: 2025-02-09 | F65: 220 | G65: شركة ايجى سمارت | H65: فستفال | I65: 1180 | J65: 154 | K65: 1026 | L65: 0.03 | M65: 30.78 | N65: 995.22 | O65: 38 | P65: 37818.36
E66: 2025-02-09 | F66: 975 | G66: شركة ايجى سمارت | H66: فستفال | I66: 4800 | J66: 682.5 | K66: 4117.5 | L66: 0.02 | M66: 82.35 | N66: 4035.15 | O66: 38 | P66: 153335.7
E67: 2025-02-09 | F67: 972 | G67: شركة ايجى سمارت | H67: فستفال | I67: 5010 | J67: 680.4 | K67: 4329.6 | L67: 0.02 | M67: 86.592 | N67: 4243.008 | O67: 38 | P67: 161234.304
E68: 2025-02-10 | F68: 196 | G68: ايجى فروست | H68: فستفال | I68: 1358 | J68: 137.2 | K68: 1220.8 | L68: 0.02 | M68: 24.416 | N68: 1196.384 | O68: 38 | P68: 45462.592
E69: 2025-02-10 | F69: 342 | G69: ايجى فروست | H69: فستفال | I69: 2172 | J69: 319.77 | K69: 1852.23 | L69: 0.02 | M69: 37.0446 | N69: 1815.1854 | O69: 38 | P69: 68977.0452
E70: 2025-02-10 | F70: 220 | G70: ايجى فروست | H70: فستفال | I70: 1740 | J70: 154 | K70: 1586 | L70: 0.03 | M70: 47.58 | N70: 1538.42 | O70: 38 | P70: 58459.96
E71: 2025-02-10 | F71: 1026 | G71: ايجى فروست | H71: فستفال | I71: 5030 | J71: 718.2 | K71: 4311.8 | L71: 0.01 | M71: 43.118 | N71: 4268.682 | O71: 38 | P71: 162209.916
E72: 2025-02-11 | F72: 972 | G72: ايجى فروست | H72: فستفال | I72: 4600 | J72: 680.4 | K72: 3919.6 | L72: 0.01 | M72: 39.196 | N72: 3880.404 | O72: 30 | P72: 116412.12
E73: 2025-02-11 | F73: 972 | G73: ايجى فروست | H73: فستفال | I73: 4540 | J73: 680.4 | K73: 3859.6 | L73: 0.02 | M73: 77.192 | N73: 3782.408 | O73: 30 | P73: 113472.24
G74: =+G73 -> ايجى فروست | P74: =+N74*O74 -> 0
G75: ايجى فروست | P75: 0
G76: ايجى فروست | P76: 0
G77: ايجى فروست | P77: 0
G78: ايجى فروست | P78: 0
G79: ايجى فروست | P79: 0
G80: ايجى فروست | P80: 0
G81: ايجى فروست | P81: 0
G82: ايجى فروست | P82: 0
G83: ايجى فروست | P83: 0
G84: ايجى فروست | P84: 0
G85: ايجى فروست | P85: 0
G86: ايجى فروست | P86: 0
G87: ايجى فروست | P87: 0
G88: ايجى فروست | P88: 0
G89: ايجى فروست | P89: 0
G90: ايجى فروست | P90: 0
G91: ايجى فروست | P91: 0
G92: ايجى فروست | P92: 0
G93: ايجى فروست | P93: 0
G94: ايجى فروست | P94: 0
G95: ايجى فروست | P95: 0
G96: ايجى فروست | P96: 0
G97: ايجى فروست | P97: 0
G98: ايجى فروست | P98: 0
G99: ايجى فروست | P99: 0
G100: ايجى فروست | P100: 0
G101: ايجى فروست | P101: 0
G102: ايجى فروست | P102: 0
G103: ايجى فروست | P103: 0
G104: ايجى فروست | P104: 0
G105: ايجى فروست | P105: 0
G106: ايجى فروست | P106: 0
G107: ايجى فروست | P107: 0
G108: ايجى فروست | P108: 0
G109: ايجى فروست | P109: 0
G110: ايجى فروست | P110: 0
G111: ايجى فروست | P111: 0
G112: ايجى فروست | P112: 0
G113: ايجى فروست | P113: 0
G114: ايجى فروست | P114: 0
G115: ايجى فروست | P115: 0
G116: ايجى فروست | P116: 0
G117: ايجى فروست | P117: 0
G118: ايجى فروست | P118: 0
G119: ايجى فروست | P119: 0
G120: ايجى فروست | P120: 0
G121: ايجى فروست | P121: 0
G122: ايجى فروست | P122: 0
G123: ايجى فروست | P123: 0
G124: ايجى فروست | P124: 0
G125: ايجى فروست | P125: 0
G126: ايجى فروست | P126: 0
G127: ايجى فروست | P127: 0
G128: ايجى فروست | P128: 0
G129: ايجى فروست | P129: 0
G130: ايجى فروست | P130: 0
G131: ايجى فروست | P131: 0
G132: ايجى فروست | P132: 0
G133: ايجى فروست | P133: 0
G134: ايجى فروست | P134: 0
G135: ايجى فروست | P135: 0
G136: ايجى فروست | P136: 0
G137: =+G136 -> ايجى فروست | P137: =+N137*O137 -> 0
G138: ايجى فروست | P138: 0
G139: ايجى فروست | P139: 0
G140: ايجى فروست | P140: 0
G141: ايجى فروست | P141: 0
G142: ايجى فروست | P142: 0
G143: ايجى فروست | P143: 0
G144: ايجى فروست | P144: 0
G145: ايجى فروست | P145: 0
G146: ايجى فروست | P146: 0
G147: ايجى فروست | P147: 0
G148: ايجى فروست | P148: 0
G149: ايجى فروست | P149: 0
G150: ايجى فروست | P150: 0
G151: ايجى فروست | P151: 0
G152: ايجى فروست | P152: 0
G153: ايجى فروست | P153: 0
G154: ايجى فروست | P154: 0
G155: ايجى فروست | P155: 0
G156: ايجى فروست | P156: 0
G157: ايجى فروست | P157: 0
G158: ايجى فروست | P158: 0
G159: ايجى فروست | P159: 0
G160: ايجى فروست | P160: 0
G161: ايجى فروست | P161: 0
G162: ايجى فروست | P162: 0
G163: ايجى فروست | P163: 0
G164: ايجى فروست | P164: 0
G165: ايجى فروست | P165: 0
G166: ايجى فروست | P166: 0
G167: ايجى فروست | P167: 0
G168: ايجى فروست | P168: 0
G169: ايجى فروست | P169: 0
G170: ايجى فروست | P170: 0
G171: ايجى فروست | P171: 0
G172: ايجى فروست | P172: 0
G173: ايجى فروست | P173: 0
G174: ايجى فروست | P174: 0
G175: ايجى فروست | P175: 0
G176: ايجى فروست | P176: 0
G177: ايجى فروست | P177: 0
G178: ايجى فروست | P178: 0
G179: ايجى فروست | P179: 0
G180: ايجى فروست | P180: 0
G181: ايجى فروست | P181: 0
G182: ايجى فروست | P182: 0
G183: ايجى فروست | P183: 0
G184: ايجى فروست | P184: 0
G185: ايجى فروست | P185: 0
G186: ايجى فروست | P186: 0
G187: ايجى فروست | P187: 0
G188: ايجى فروست | P188: 0
G189: ايجى فروست | P189: 0
G190: ايجى فروست | P190: 0
G191: ايجى فروست | P191: 0
G192: ايجى فروست | P192: 0
G193: ايجى فروست | P193: 0
G194: ايجى فروست | P194: 0
G195: ايجى فروست | P195: 0
G196: ايجى فروست | P196: 0
G197: ايجى فروست | P197: 0
G198: ايجى فروست | P198: 0
G199: ايجى فروست | P199: 0
G200: ايجى فروست | P200: 0
G201: =+G200 -> ايجى فروست | P201: =+N201*O201 -> 0
... 721 more rows

Sheet فستفال
B9: التاريخ | C9: العدد | D9: الصنف | E9: وزن قائم | F9: الفارغ | G9: صافى قبل الخصم | H9: نسبة الخصم | I9: الخصم | J9: الصافى | K9: السعر | L9: القيمة
A10: 1 | B10: 2025-01-05 | C10: 172 | D10: فستفال | J10: 1356 | K10: 45 | L10: 61020
A11: 2 | B11: 2025-01-05 | C11: 308 | D11: فستفال | J11: 745 | K11: 45 | L11: 33525
A12: 3 | B12: 2025-01-06 | C12: 312 | D12: فستفال | J12: 1464 | K12: 45 | L12: 65880
A13: 4 | B13: 2025-01-06 | C13: 330 | D13: فستفال | J13: 1358 | K13: 45 | L13: 61110
A14: 5 | B14: 2025-01-07 | C14: 972 | D14: فستفال | J14: 4400 | K14: 45 | L14: 198000
A15: 6 | B15: 2025-01-08 | C15: 942 | D15: فستفال | J15: 4105 | K15: 45 | L15: 184725
A16: 7 | B16: 2025-01-11 | C16: 728 | D16: فستفال | J16: 3324 | K16: 45 | L16: 149580
A17: 8 | B17: 2025-01-12 | C17: 252 | D17: فستفال | J17: 1158 | K17: 45 | L17: 52110
A18: 9 | B18: 2025-01-12 | C18: 918 | D18: فستفال | J18: 3888 | K18: 45 | L18: 174960
A19: 10 | B19: 2025-01-13 | C19: 308 | D19: فستفال | J19: 1279 | K19: 45 | L19: 57555
A20: 11 | B20: 2025-01-13 | C20: 972 | D20: فستفال | J20: 3962 | K20: 45 | L20: 178290
A21: 12 | B21: 2025-01-14 | C21: 270 | D21: فستفال | J21: 1219 | K21: 45 | L21: 54855
A22: 13 | B22: 2025-01-14 | C22: 972 | D22: فستفال | J22: 4224 | K22: 45 | L22: 190080
A23: 14 | B23: 2025-01-15 | C23: 158 | D23: فستفال | J23: 773 | K23: 45 | L23: 34785
A24: 15 | B24: 2025-01-15 | C24: 918 | D24: فستفال | J24: 3756 | K24: 45 | L24: 169020
A25: 16 | B25: 2025-01-18 | C25: 224 | D25: فستفال | J25: 983 | K25: 45 | L25: 44235
A26: 17 | B26: 2025-01-18 | C26: 918 | D26: فستفال | J26: 3955 | K26: 45 | L26: 177975
A27: 18 | B27: 2025-01-19 | C27: 352 | D27: فستفال | J27: 1597 | K27: 45 | L27: 71865
A28: 19 | B28: 2025-01-19 | C28: 972 | D28: فستفال | J28: 4371 | K28: 45 | L28: 196695
A29: 20 | B29: 2025-01-20 | C29: 242 | D29: فستفال | J29: 412.6 | K29: 45 | L29: 18567
A30: 21 | B30: 2025-01-20 | C30: 972 | D30: فستفال | J30: 1044.6 | K30: 45 | L30: 47007
A31: 22 | B31: 2025-01-21 | C31: 396 | D31: فستفال | J31: 1705.6 | K31: 45 | L31: 76752
A32: 23 | B32: 2025-01-21 | C32: 972 | D32: فستفال | J32: 4056.8 | K32: 45 | L32: 182556
A33: 24 | B33: 2025-01-22 | C33: 300 | D33: فستفال | J33: 4086.2 | K33: 45 | L33: 183879
A34: 25 | B34: 2025-01-22 | C34: 100 | D34: فستفال | J34: 965.3 | K34: 45 | L34: 43438.5
A35: 26 | B35: 2025-01-25 | C35: 810 | D35: فستفال | J35: 3354.5 | K35: 41 | L35: 137534.5
A36: 27 | B36: 2025-01-25 | C36: 756 | D36: فستفال | J36: 3225 | K36: 41 | L36: 132225
A37: 28 | B37: 2025-01-26 | C37: 396 | D37: فستفال | J37: 1554 | K37: 41 | L37: 63714
A38: 29 | B38: 2025-01-26 | C38: 1080 | D38: فستفال | J38: 4398 | K38: 41 | L38: 180318
A39: 30 | B39: 2025-01-27 | C39: 315 | D39: فستفال | J39: 1296.5 | K39: 41 | L39: 53156.5
A40: 31 | B40: 2025-01-27 | C40: 918 | D40: فستفال | J40: 3770.4 | K40: 41 | L40: 154586.4
A41: 32 | B41: 2025-01-28 | C41: 218 | D41: فستفال | J41: 806 | K41: 41 | L41: 33046
A42: 33 | B42: 2025-01-28 | C42: 918 | D42: فستفال | J42: 3732 | K42: 41 | L42: 153012
A43: 34 | B43: 2025-01-29 | C43: 150 | D43: فستفال | J43: 598.5 | K43: 41 | L43: 24538.5
A44: 35 | B44: 2025-01-29 | C44: 918 | D44: فستفال | J44: 3604 | K44: 41 | L44: 147764
A45: 36 | B45: 2025-02-01 | C45: 918 | D45: فستفال | J45: 3731.5 | K45: 39 | L45: 145528.5
A46: 37 | B46: 2025-02-01 | C46: 810 | D46: فستفال | J46: 3256.5 | K46: 39 | L46: 127003.5
A47: 38 | B47: 2025-02-02 | C47: 810 | D47: فستفال | J47: 3384 | K47: 39 | L47: 131976
A48: 39 | B48: 2025-02-02 | C48: 756 | D48: فستفال | J48: 3258 | K48: 39 | L48: 127062
A49: 40 | B49: 2025-02-03 | C49: 182 | D49: فستفال | J49: 511.6 | K49: 39 | L49: 19952.4
A50: 41 | B50: 2025-02-03 | C50: 864 | D50: فستفال | J50: 3685 | K50: 39 | L50: 143715
A51: 42 | B51: 2025-02-03 | C51: 790 | D51: فستفال | J51: 3415 | K51: 39 | L51: 133185
A52: 43 | B52: 2025-02-04 | C52: 232 | D52: فستفال | J52: 1113.1 | K52: 39 | L52: 43410.9
A53: 44 | B53: 2025-02-04 | C53: 810 | D53: فستفال | J53: 3448 | K53: 39 | L53: 134472
A54: 45 | B54: 2025-02-04 | C54: 564 | D54: فستفال | J54: 2421.7 | K54: 39 | L54: 94446.3
A55: 46 | B55: 2025-02-05 | C55: 918 | D55: فستفال | J55: 3437.4 | K55: 39 | L55: 134058.6
A56: 47 | B56: 2025-02-05 | C56: 918 | D56: فستفال | J56: 3653 | K56: 39 | L56: 142467
A57: 48 | B57: 2025-02-06 | C57: 252 | D57: فستفال | J57: 1026.65 | K57: 39 | L57: 40039.35
A58: 49 | B58: 2025-02-06 | C58: 972 | D58: فستفال | J58: 4083.3 | K58: 39 | L58: 159248.7
A59: 50 | B59: 2025-02-08 | C59: 122 | D59: فستفال | E59: 610 | F59: 85.4 | G59: 524.6 | H59: 0.01 | I59: 5.246 | J59: 519.35 | K59: 38 | L59: 19735.3
A60: 51 | B60: 2025-02-08 | C60: 735 | D60: فستفال | E60: 3770 | F60: 514.5 | G60: 3255.5 | H60: 0.01 | I60: 32.555 | J60: 3223 | K60: 38 | L60: 122474
A61: 52 | B61: 2025-02-08 | C61: 531 | D61: فستفال | E61: 2630 | F61: 371.7 | G61: 2258.3 | H61: 0.01 | I61: 22.583 | J61: 2235.72 | K61: 38 | L61: 84957.36
A62: 53 | B62: 2025-02-09 | C62: 220 | D62: فستفال | E62: 1180 | F62: 154 | G62: 1026 | H62: 0.03 | I62: 30.78 | J62: 995.22 | K62: 38 | L62: 37818.36
A63: 54 | B63: 2025-02-09 | C63: 975 | D63: فستفال | E63: 4800 | F63: 682.5 | G63: 4117.5 | H63: 0.02 | I63: 82.35 | J63: 4035.15 | K63: 38 | L63: 153335.7
A64: 55 | B64: 2025-02-09 | C64: 972 | D64: فستفال | E64: 5010 | F64: 680.4 | G64: 4329.6 | H64: 0.02 | I64: 86.592 | J64: 4243.008 | K64: 38 | L64: 161234.304
A65: 56 | B65: 2025-02-10 | C65: 196 | D65: فستفال | E65: 1358 | F65: 137.2 | G65: 1220.8 | H65: 0.02 | I65: 24.416 | J65: 1196.384 | K65: 38 | L65: 45462.592
A66: 57 | B66: 2025-02-10 | C66: 342 | D66: فستفال | E66: 2172 | F66: 319.77 | G66: 1852.23 | H66: 0.02 | I66: 37.0446 | J66: 1815.1854 | K66: 38 | L66: 68977.0452
A67: 58 | B67: 2025-02-10 | C67: 220 | D67: فستفال | E67: 1740 | F67: 154 | G67: 1586 | H67: 0.03 | I67: 47.58 | J67: 1538.42 | K67: 38 | L67: 58459.96
A68: 59 | B68: 2025-02-10 | C68: 1026 | D68: فستفال | E68: 5030 | F68: 718.2 | G68: 4311.8 | H68: 0.01 | I68: 43.118 | J68: 4268.682 | K68: 38 | L68: 162209.916
A69: 60 | B69: 2025-02-11 | C69: 972 | D69: فستفال | E69: 4600 | F69: 680.4 | G69: 3919.6 | H69: 0.01 | I69: 39.196 | J69: 3880.404 | K69: 30 | L69: 116412.12
A70: 61 | B70: 2025-02-11 | C70: 972 | D70: فستفال | E70: 4540 | F70: 680.4 | G70: 3859.6 | H70: 0.02 | I70: 77.192 | J70: 3782.408 | K70: 30 | L70: 113472.24

Sheet صن سيشال
B9: التاريخ | C9: العدد | D9: الصنف | E9: وزن قائم | F9: الفارغ | G9: صافى قبل الخصم | H9: نسبة الخصم | I9: الخصم | J9: الصافى | K9: السعر | L9: القيمة
A10: 1 | B10: 2025-01-22 | C10: 972 | D10: صن سيشال | J10: 707.85 | K10: 30 | L10: 21235.5
A11: 2 | B11: 2025-02-04 | C11: 280 | D11: صن سيشال | J11: 1203.5 | K11: 30 | L11: 36105
A12: 3 | B12: 2025-02-05 | C12: 267 | D12: صن سيشال | J12: 1288 | K12: 30 | L12: 38640
A13: 4 | B13: 2025-02-06 | C13: 100 | D13: صن سيشال | J13: 407 | K13: 30 | L13: 12210

Sheet فرتونا
B9: التاريخ | C9: العدد | D9: الصنف | E9: وزن قائم | F9: الفارغ | G9: صافى قبل الخصم | H9: نسبة الخصم | I9: الخصم | J9: الصافى | K9: السعر | L9: القيمة
A10: 1 | B10: 2025-02-08 | C10: 294 | D10: فرتونا | E10: 670 | F10: 205.8 | G10: 464.2 | H10: 0.04 | I10: 18.568 | J10: 445.6 | K10: 36 | L10: 16041.6
A11: 2 | B11: 2025-02-08 | C11: 495 | D11: فرتونا | E11: 2570 | F11: 346.5 | G11: 2223.5 | H11: 0.03 | I11: 66.705 | J11: 2156.8 | K11: 36 | L11: 77644.8
